[Event "17th Memorial Lezcano Montalvo 2025"]
[Site "Gran Canaria"]
[Date "2025.04.15"]
[Round "4.43"]
[White "Castellanos Gomez, Pascual"]
[Black "Brito Garcia, Alfredo"]
[Result "0-1"]
[Annotator "RC"]
[ECO "A41"]
[WhiteElo "1672"]
[BlackElo "2214"]
[PlyCount "88"]
[EventDate "2025.04.13"]
[EventType "swiss"]
[EventCountry "ESP"]
[SourceTitle "playchess.com"]
[Source "ChessBase"]
[SourceQuality "1"]
[TimeControl "5400+30"]

1. d4 {[%emt 0:00:12]} d6 {[%emt 0:00:22]} 2. Bf4 {[%emt 0:00:17]} Nd7 {[%emt 0:00:53]} 3. Nf3 {[%emt 0:04:11]} g6 {[%emt 0:02:35]} 4. Nc3 {[%emt 0:01:08]} Bg7 {[%emt 0:00:33]} 5. e4 {[%emt 0:01:32]} c6 {[%emt 0:03:53]} 6. Qd2 {[%emt 0:03:34]} e5 {[%emt 0:04:53]} 7. Be3 {[%emt 0:07:49]} Ngf6 {[%emt 0:02:44]} 8. h3 {[%emt 0:06:46]} O-O {[%emt 0:02:18]} 9. Bh6 {[%emt 0:04:07]} Qe7 {[%emt 0:08:05]} 10. Bxg7 {[%emt 0:04:08]} Kxg7 {[%emt 0:01:48]} 11. O-O-O {[%emt 0:05:47]} b5 {[%emt 0:03:35]} 12. Bd3 {[%emt 0:13:35]} Nb6 {[%emt 0:05:43]} 13. Rhe1 {[%emt 0:06:11]} b4 {[%emt 0:13:39]} 14. Nb1 {[%emt 0:02:44]} a5 {[%emt 0:01:12]} 15. Qe3 {[%emt 0:04:48]} Nfd7 {[%emt 0:08:02]} 16. Nbd2 {[%emt 0:02:46]} a4 {[%emt 0:02:44]} 17. Nc4 {[%emt 0:00:28]} Nxc4 {[%emt 0:02:00]} 18. Bxc4 {[%emt 0:00:20]} Nb6 {[%emt 0:00:20]} 19. Bf1 {[%emt 0:05:52]} Rb8 {[%emt 0:01:10]} 20. Nd2 {[%emt 0:03:59]} Be6 {[%emt 0:01:49]} 21. Kb1 {[%emt 0:01:23]} Rfc8 {[%emt 0:01:55]} 22. f4 {[%emt 0:00:25]} f6 {[%emt 0:04:46]} 23. g4 {[%emt 0:02:33]} Qf7 {[%emt 0:05:17]} 24. b3 {[%emt 0:04:13]} axb3 {[%emt 0:00:22]} 25. cxb3 {[%emt 0:02:44]} c5 {[%emt 0:04:00]} 26. dxe5 {[%emt 0:01:47]} dxe5 {[%emt 0:01:19]} 27. f5 {[%emt 0:00:58]} Bd7 {[%emt 0:02:58]} 28. Bc4 {[%emt 0:01:23]} Qe7 {[%emt 0:00:29]} 29. Rf1 {[%emt 0:02:43]} g5 {[%emt 0:01:32]} 30. Rh1 {[%emt 0:00:34]} h6 {[%emt 0:00:28]} 31. h4 {[%emt 0:00:08]} Rh8 {[%emt 0:00:33]} 32. Rh3 {[%emt 0:01:11]} Bc6 {[%emt 0:01:07]} 33. Qf3 {[%emt 0:00:53]} Rbd8 {[%emt 0:02:57]} 34. Qe2 {[%emt 0:01:16]} Rd4 {[%emt 0:01:01]} 35. h5 {[%emt 0:00:49]} Rhd8 {[%emt 0:00:24]} 36. Rd3 {[%emt 0:01:07]} Qb7 {[%emt 0:01:40]} 37. Kc2 {[%emt 0:01:55]} Nxc4 {[%emt 0:00:26]} 38. Rxd4 {[%emt 0:01:31]} Na3+ {[%emt 0:00:11]} 39. Kb2 {[%emt 0:00:56]} cxd4 {[%emt 0:01:35]} 40. Rc1 {[%emt 0:00:32]} Bb5 {[%emt 0:00:45]} 41. Nc4 {[%emt 0:00:46]} d3 {[%emt 0:01:00]} 42. Qd2 {[%emt 0:00:29]} Bxc4 {[%emt 0:00:39]} 43. bxc4 {[%emt 0:00:12]} Rd4 {[%emt 0:01:15]} 44. Kb3 {[%emt 0:00:36]} Nc2 {[%emt 0:00:41]} 0-1

[Event "17th Memorial Lezcano Montalvo 2025"]
[Site "Gran Canaria"]
[Date "2025.04.15"]
[Round "4.44"]
[White "Cruz Pino, Adrian"]
[Black "Hernandez De Armas, Leonardo"]
[Result "1-0"]
[Annotator "NA RC"]
[ECO "E90"]
[WhiteElo "2099"]
[BlackElo "1645"]
[PlyCount "77"]
[EventDate "2025.04.13"]
[EventType "swiss"]
[EventCountry "ESP"]
[SourceTitle "playchess.com"]
[Source "ChessBase"]
[SourceQuality "1"]
[TimeControl "5400+30"]

1. c4 {[%emt 0:00:03]} Nf6 {[%emt 0:00:09]} 2. Nc3 {[%emt 0:00:05]} g6 {[%emt 0:00:36]} 3. e4 {[%emt 0:00:10]} d6 {[%emt 0:00:07]} 4. d4 {[%emt 0:00:09]} Bg7 {[%emt 0:00:25]} 5. Nf3 {[%emt 0:00:11]} O-O {[%emt 0:00:31]} 6. h3 {[%emt 0:00:03]} e5 {[%emt 0:00:12]} 7. dxe5 {[%emt 0:00:24]} dxe5 {[%emt 0:00:13]} 8. Qxd8 {[%emt 0:00:04]} Rxd8 {[%emt 0:00:20]} 9. Bg5 {[%emt 0:00:05]} Nc6 {[%emt 0:01:13]} 10. Nd5 {[%emt 0:01:01]} Rd6 {[%emt 0:01:14]} 11. Bxf6 {[%emt 0:00:28]} Bxf6 {[%emt 0:00:49]} 12. c5 {[%emt 0:00:12]} Rxd5 {[%emt 0:00:32]} 13. exd5 {[%emt 0:00:07]} e4 {[%emt 0:01:13]} 14. dxc6 {[%emt 0:01:48]} exf3 {[%emt 0:00:51]} 15. O-O-O {[%emt 0:01:35]} Bf5 {[%emt 0:02:22]} 16. Bd3 {[%emt 0:05:02]} fxg2 {[%emt 0:02:52]} 17. Rhg1 {[%emt 0:00:03]} Bxh3 {[%emt 0:00:17]} 18. cxb7 {[%emt 0:00:07]} Rb8 {[%emt 0:02:22]} 19. Be4 {[%emt 0:00:07]} Bh4 {[%emt 0:00:45]} 20. Bxg2 {[%emt 0:05:22]} Bxf2 {[%emt 0:01:29]} 21. Bxh3 {[%emt 0:01:28]} Bxg1 {[%emt 0:00:44]} 22. Rxg1 {[%emt 0:00:02]} Rxb7 {[%emt 0:01:18]} 23. Bf1 {[%emt 0:09:00]} Rb4 {[%emt 0:06:02]} 24. b3 {[%emt 0:00:24]} Re4 {[%emt 0:02:20]} 25. Kd2 {[%emt 0:01:33]} Re5 {[%emt 0:02:56]} 26. b4 {[%emt 0:00:05]} Rf5 {[%emt 0:08:00]} 27. Bc4 {[%emt 0:00:40]} Rf4 {[%emt 0:02:11]} 28. Kd3 {[%emt 0:01:38]} Kg7 {[%emt 0:01:59]} 29. a4 {[%emt 0:03:59]} h5 {[%emt 0:09:07]} 30. b5 {[%emt 0:01:43]} h4 {[%emt 0:01:15]} 31. a5 {[%emt 0:00:10]} h3 {[%emt 0:00:54]} 32. b6 {[%emt 0:01:20]} h2 {[%emt 0:00:18]} 33. Rh1 {[%emt 0:00:03]} cxb6 {[%emt 0:00:10]} 34. cxb6 {[%emt 0:01:16]} axb6 {[%emt 0:00:20]} 35. a6 {[%emt 0:00:43]} Rf3+ {[%emt 0:00:15]} 36. Kd4 {[%emt 0:00:08]} Ra3 {[%emt 0:09:29]} 37. Rxh2 {[%emt 0:00:08]} Ra1 {[%emt 0:00:57]} 38. Ra2 {[%emt 0:00:15]} Rd1+ {[%emt 0:00:06]} 39. Bd3 {[%emt 0:00:04]} 1-0

[Event "17th Memorial Lezcano Montalvo 2025"]
[Site "Gran Canaria"]
[Date "2025.04.15"]
[Round "4.45"]
[White "Schmitz, Andreas Arnold"]
[Black "Cattani, Cloe"]
[Result "1-0"]
[Annotator "RC"]
[ECO "C07"]
[WhiteElo "1967"]
[BlackElo "1614"]
[PlyCount "97"]
[EventDate "2025.04.13"]
[EventType "swiss"]
[EventCountry "ESP"]
[SourceTitle "playchess.com"]
[Source "ChessBase"]
[SourceQuality "1"]
[TimeControl "5400+30"]

1. e4 {[%emt 0:00:05]} e6 {[%emt 0:00:41]} 2. d4 {[%emt 0:00:28]} d5 {[%emt 0:00:13]} 3. Nc3 {[%emt 0:00:30]} dxe4 {[%emt 0:01:03]} 4. Nxe4 {[%emt 0:00:26]} Nd7 {[%emt 0:00:25]} 5. Nf3 {[%emt 0:04:47]} Ngf6 {[%emt 0:01:03]} 6. Bd3 {[%emt 0:02:52]} Nxe4 {[%emt 0:00:56]} 7. Bxe4 {[%emt 0:00:08]} Nf6 {[%emt 0:00:48]} 8. Bd3 {[%emt 0:02:06]} c5 {[%emt 0:02:01]} 9. O-O {[%emt 0:01:24]} cxd4 {[%emt 0:01:04]} 10. Bb5+ {[%emt 0:02:31]} Bd7 {[%emt 0:03:08]} 11. Bxd7+ {[%emt 0:01:43]} Qxd7 {[%emt 0:01:42]} 12. Qxd4 {[%emt 0:03:48]} Qxd4 {[%emt 0:01:08]} 13. Nxd4 {[%emt 0:00:07]} Bc5 {[%emt 0:00:47]} 14. Nb5 {[%emt 0:13:18]} Ke7 {[%emt 0:14:09]} 15. c4 {[%emt 0:08:52]} a6 {[%emt 0:03:04]} 16. Nc3 {[%emt 0:00:08]} Rac8 {[%emt 0:02:52]} 17. b3 {[%emt 0:05:43]} Bd4 {[%emt 0:05:08]} 18. Ba3+ {[%emt 0:01:21]} Ke8 {[%emt 0:02:39]} 19. Rac1 {[%emt 0:05:38]} g5 {[%emt 0:09:14]} 20. Rfd1 {[%emt 0:02:16]} Ba7 {[%emt 0:06:09]} 21. Rd2 {[%emt 0:04:52]} Rd8 {[%emt 0:06:14]} 22. Rcd1 {[%emt 0:00:52]} Rxd2 {[%emt 0:00:23]} 23. Rxd2 {[%emt 0:00:06]} h5 {[%emt 0:06:23]} 24. Bd6 {[%emt 0:01:50]} Rg8 {[%emt 0:03:18]} 25. c5 {[%emt 0:03:26]} Nd7 {[%emt 0:05:59]} 26. b4 {[%emt 0:00:13]} f5 {[%emt 0:00:55]} 27. g3 {[%emt 0:07:08]} h4 {[%emt 0:05:39]} 28. Kg2 {[%emt 0:01:02]} Kf7 {[%emt 0:01:50]} 29. Kf3 {[%emt 0:04:58]} hxg3 {[%emt 0:01:00]} 30. hxg3 {[%emt 0:01:55]} Nf6 {[%emt 0:02:17]} 31. Be5 {[%emt 0:01:55]} Ke7 {[%emt 0:03:49]} 32. Bxf6+ {[%emt 0:05:58]} Kxf6 {[%emt 0:00:09]} 33. Rd7 {[%emt 0:00:17]} Rg7 {[%emt 0:00:28]} 34. Rd8 {[%emt 0:02:06]} b6 {[%emt 0:00:26]} 35. cxb6 {[%emt 0:02:13]} Bxb6 {[%emt 0:00:16]} 36. Rd6 {[%emt 0:00:04]} Bc7 {[%emt 0:04:41]} 37. Rxa6 {[%emt 0:01:17]} g4+ {[%emt 0:01:11]} 38. Kg2 {[%emt 0:01:10]} f4 {[%emt 0:01:24]} 39. gxf4 {[%emt 0:01:33]} Bxf4 {[%emt 0:00:18]} 40. Nd5+ {[%emt 0:00:55]} Ke5 {[%emt 0:01:32]} 41. Nxf4 {[%emt 0:00:23]} Kxf4 {[%emt 0:00:09]} 42. Rxe6 {[%emt 0:01:08]} Ra7 {[%emt 0:00:30]} 43. Re2 {[%emt 0:00:16]} Ra4 {[%emt 0:01:17]} 44. Rb2 {[%emt 0:00:09]} Ke4 {[%emt 0:01:10]} 45. b5 {[%emt 0:00:39]} Kd5 {[%emt 0:00:33]} 46. b6 {[%emt 0:00:42]} Ra8 {[%emt 0:00:18]} 47. Kg3 {[%emt 0:01:28]} Kc6 {[%emt 0:00:14]} 48. b7 {[%emt 0:00:36]} Rb8 {[%emt 0:00:22]} 49. a4 {[%emt 0:00:24]} 1-0

[Event "17th Memorial Lezcano Montalvo 2025"]
[Site "Gran Canaria"]
[Date "2025.04.15"]
[Round "4.46"]
[White "Lascar, Radoslawa"]
[Black "De Gabriel Stella, Alejandro"]
[Result "1-0"]
[Annotator "NA RC"]
[ECO "C54"]
[WhiteElo "1897"]
[BlackElo "1606"]
[PlyCount "45"]
[EventDate "2025.04.13"]
[EventType "swiss"]
[EventCountry "ESP"]
[SourceTitle "playchess.com"]
[Source "ChessBase"]
[SourceQuality "1"]
[TimeControl "5400+30"]

1. e4 {[%emt 0:03:45]} e5 {[%emt 0:00:02]} 2. Nf3 {[%emt 0:00:14]} Nc6 {[%emt 0:00:02]} 3. Bc4 {[%emt 0:00:19]} Bc5 {[%emt 0:00:03]} 4. c3 {[%emt 0:00:13]} Nf6 {[%emt 0:00:01]} 5. d3 {[%emt 0:00:08]} d6 {[%emt 0:00:26]} 6. Bb3 {[%emt 0:00:11]} h6 {[%emt 0:00:22]} 7. Nbd2 {[%emt 0:01:27]} O-O {[%emt 0:00:41]} 8. Nf1 {[%emt 0:00:25]} d5 {[%emt 0:01:42]} 9. Qe2 {[%emt 0:00:23]} a5 {[%emt 0:01:54]} 10. Ba4 {[%emt 0:03:51]} Bg4 {[%emt 0:03:40]} 11. Ng3 {[%emt 0:02:14]} Rb8 {[%emt 0:04:42]} 12. Bxc6 {[%emt 0:03:42]} bxc6 {[%emt 0:00:11]} 13. h3 {[%emt 0:01:36]} Bc8 {[%emt 0:07:16]} 14. Nxe5 {[%emt 0:07:02]} Qd6 {[%emt 0:01:08]} 15. d4 {[%emt 0:08:23]} dxe4 {[%emt 0:05:22]} 16. Nc4 {[%emt 0:03:53]} Qd5 {[%emt 0:02:22]} 17. dxc5 {[%emt 0:06:47]} Ba6 {[%emt 0:00:05]} 18. Ne3 {[%emt 0:02:14]} Qd3 {[%emt 0:00:34]} 19. Qxd3 {[%emt 0:00:42]} exd3 {[%emt 0:00:02]} 20. c4 {[%emt 0:02:34]} Nd7 {[%emt 0:00:06]} 21. b3 {[%emt 0:02:57]} Nxc5 {[%emt 0:00:28]} 22. Ba3 {[%emt 0:01:24]} d2+ {[%emt 0:00:07]} 23. Ke2 {[%emt 0:01:08]} 1-0

[Event "17th Memorial Lezcano Montalvo 2025"]
[Site "Gran Canaria"]
[Date "2025.04.15"]
[Round "4.47"]
[White "Bujdoso, Erik"]
[Black "Posso Cangrejo, Sergio David"]
[Result "0-1"]
[Annotator "NA RC"]
[ECO "A30"]
[WhiteElo "1637"]
[BlackElo "1878"]
[PlyCount "102"]
[EventDate "2025.04.13"]
[EventType "swiss"]
[EventCountry "ESP"]
[SourceTitle "playchess.com"]
[Source "ChessBase"]
[SourceQuality "1"]
[TimeControl "5400+30"]

1. Nf3 {[%emt 0:00:15]} Nf6 {[%emt 0:02:50]} 2. c4 {[%emt 0:01:53]} e6 {[%emt 0:01:27]} 3. e3 {[%emt 0:00:23]} c5 {[%emt 0:00:56]} 4. b3 {[%emt 0:01:59]} Be7 {[%emt 0:00:39]} 5. Be2 {[%emt 0:00:11]} O-O {[%emt 0:00:22]} 6. O-O {[%emt 0:00:04]} b6 {[%emt 0:00:11]} 7. Bb2 {[%emt 0:00:28]} Bb7 {[%emt 0:00:06]} 8. d4 {[%emt 1:29:17]} cxd4 {[%emt 0:00:47]} 9. exd4 {[%emt 0:00:00]} d5 {[%emt 0:00:20]} 10. Nbd2 {[%emt 0:00:00]} Nbd7 {[%emt 0:02:23]} 11. Rc1 {[%emt 0:00:00]} Rc8 {[%emt 0:00:34]} 12. Re1 {[%emt 0:00:00]} Rc7 {[%emt 0:01:06]} 13. Rc2 {[%emt 0:00:00]} Qa8 {[%emt 0:02:02]} 14. Qb1 {[%emt 0:00:00]} Rfc8 {[%emt 0:03:00]} 15. Bd3 {[%emt 0:00:00]} a5 {[%emt 0:04:05]} 16. Ne5 {[%emt 0:00:00]} Bb4 {[%emt 0:04:51]} 17. f3 {[%emt 0:00:00]} dxc4 {[%emt 0:08:55]} 18. Nxd7 {[%emt 0:00:00]} Nxd7 {[%emt 0:02:58]} 19. bxc4 {[%emt 0:00:00]} Ba6 {[%emt 0:01:49]} 20. a3 {[%emt 0:00:00]} Bxd2 {[%emt 0:03:07]} 21. Rxd2 {[%emt 0:00:00]} Nf8 {[%emt 0:00:41]} 22. d5 {[%emt 0:00:00]} Bxc4 {[%emt 0:02:28]} 23. dxe6 {[%emt 0:00:00]} Bxe6 {[%emt 0:01:55]} 24. Be5 {[%emt 0:00:00]} Rd7 {[%emt 0:04:07]} 25. Be4 {[%emt 0:00:00]} Qa7 {[%emt 0:04:08]} 26. Rxd7 {[%emt 0:00:00]} Bxd7 {[%emt 0:00:09]} 27. Bd4 {[%emt 0:00:00]} Rb8 {[%emt 0:01:09]} 28. Be5 {[%emt 0:00:00]} b5+ {[%emt 0:00:43]} 29. Bd4 {[%emt 0:10:30]} Qxd4+ {[%emt 0:47:12]} 30. Kh1 {[%emt 0:00:30]} Be6 {[%emt 0:00:30]} 31. Rd1 {[%emt 0:00:30]} Qb6 {[%emt 0:00:30]} 32. Rd2 {[%emt 0:00:30]} b4 {[%emt 0:00:30]} 33. Rb2 {[%emt 0:00:30]} b3 {[%emt 0:00:30]} 34. a4 {[%emt 0:00:30]} Qd4 {[%emt 0:00:30]} 35. Bc6 {[%emt 0:00:30]} Bd7 {[%emt 0:00:30]} 36. Bxd7 {[%emt 0:00:30]} Nxd7 {[%emt 0:00:30]} 37. h3 {[%emt 0:00:30]} Qxa4 {[%emt 0:00:30]} 38. Rd2 {[%emt 0:00:30]} Nf6 {[%emt 0:00:30]} 39. Qd1 {[%emt 0:00:30]} h6 {[%emt 0:00:30]} 40. Rd4 {[%emt 0:00:30]} Qxd4 {[%emt 0:00:30]} 41. Qxd4 {[%emt 0:00:30]} b2 {[%emt 0:00:30]} 42. Kh2 {[%emt 0:00:30]} b1=Q {[%emt 0:00:30]} 43. Qd6 {[%emt 0:00:30]} Qb6 {[%emt 0:00:30]} 44. Qg3 {[%emt 0:00:30]} a4 {[%emt 0:00:30]} 45. h4 {[%emt 0:00:30]} a3 {[%emt 0:00:30]} 46. Qh3 {[%emt 0:00:30]} Qd6+ {[%emt 0:00:30]} 47. g3 {[%emt 0:00:30]} Rb2+ {[%emt 0:00:30]} 48. Qg2 {[%emt 0:00:30]} Rxg2+ {[%emt 0:00:30]} 49. Kxg2 a2 {[%emt 0:00:30]} 50. f4 {[%emt 0:01:00]} a1=Q {[%emt 0:00:30]} 51. Kh3 {[%emt 0:00:30]} Qh1# 0-1

[Event "17th Memorial Lezcano Montalvo 2025"]
[Site "Gran Canaria"]
[Date "2025.04.15"]
[Round "4.48"]
[White "Vargas Tinoco, Celso Alejandro"]
[Black "Quintero Hernandez, Marcos Jesus"]
[Result "0-1"]
[Annotator "NA RC"]
[ECO "D30"]
[WhiteElo "1588"]
[BlackElo "1874"]
[PlyCount "108"]
[EventDate "2025.04.13"]
[EventType "swiss"]
[EventCountry "ESP"]
[SourceTitle "playchess.com"]
[Source "ChessBase"]
[SourceQuality "1"]
[TimeControl "5400+30"]

1. d4 {[%emt 0:00:30]} d5 {[%emt 0:01:03]} 2. c4 {[%emt 0:00:00]} e6 {[%emt 0:00:06]} 3. e3 {[%emt 0:00:00]} Nf6 {[%emt 0:00:14]} 4. Nf3 {[%emt 0:00:00]} Be7 {[%emt 0:00:07]} 5. Be2 {[%emt 0:00:05]} dxc4 {[%emt 0:00:12]} 6. Bxc4 {[%emt 0:00:14]} a6 {[%emt 0:00:07]} 7. O-O {[%emt 0:00:08]} b5 {[%emt 0:00:05]} 8. Bb3 {[%emt 0:01:05]} Bb7 {[%emt 0:00:45]} 9. Bd2 {[%emt 0:00:30]} O-O {[%emt 0:00:40]} 10. a3 {[%emt 0:00:50]} Nbd7 {[%emt 0:00:00]} 11. Ba5 {[%emt 0:01:52]} Bd6 {[%emt 0:01:02]} 12. Qc2 {[%emt 0:00:40]} Rc8 {[%emt 0:00:30]} 13. Nbd2 {[%emt 0:00:48]} Qe7 {[%emt 0:00:40]} 14. Rfe1 {[%emt 0:00:54]} c5 {[%emt 0:00:22]} 15. dxc5 {[%emt 0:05:13]} Nxc5 {[%emt 0:00:03]} 16. Bc3 {[%emt 1:25:41]} Nfe4 {[%emt 0:02:55]} 17. Ba2 {[%emt 0:00:00]} Nxc3 {[%emt 0:00:44]} 18. bxc3 {[%emt 0:00:00]} Na4 {[%emt 0:00:21]} 19. c4 {[%emt 0:00:00]} Rfd8 {[%emt 0:04:01]} 20. Bb3 {[%emt 0:00:00]} Nb6 {[%emt 0:02:10]} 21. a4 {[%emt 0:00:00]} bxc4 {[%emt 0:00:49]} 22. Bxc4 {[%emt 0:00:00]} Bxf3 {[%emt 0:06:04]} 23. Nxf3 {[%emt 0:00:00]} Nxc4 {[%emt 0:00:22]} 24. Qe2 {[%emt 0:00:00]} a5 {[%emt 0:00:18]} 25. Red1 {[%emt 0:00:00]} Ne5 {[%emt 0:00:42]} 26. Nd4 {[%emt 0:00:00]} Bb4 {[%emt 0:00:37]} 27. f4 {[%emt 0:00:00]} Ng6 {[%emt 0:00:55]} 28. g3 {[%emt 0:00:00]} e5 {[%emt 0:00:33]} 29. Nf5 {[%emt 0:00:00]} Qf6 {[%emt 0:00:09]} 30. Qg4 {[%emt 0:00:00]} h5 {[%emt 0:01:07]} 31. Qxh5 {[%emt 0:00:00]} exf4 {[%emt 0:00:25]} 32. exf4 {[%emt 0:00:00]} Bc5+ {[%emt 0:00:14]} 33. Kg2 {[%emt 0:00:00]} Rxd1 {[%emt 0:01:26]} 34. Rxd1 {[%emt 0:00:00]} Qc6+ {[%emt 0:00:14]} 35. Kh3 {[%emt 0:00:00]} Qe6 {[%emt 0:00:41]} 36. Qg5 {[%emt 0:00:00]} Be7 {[%emt 0:00:55]} 37. Qg4 {[%emt 0:00:00]} Re8 {[%emt 0:04:04]} 38. Nxe7+ {[%emt 0:00:00]} Qxe7 {[%emt 0:00:21]} 39. f5 {[%emt 0:00:00]} Ne5 {[%emt 0:00:12]} 40. Qe4 {[%emt 0:00:00]} Qf6 {[%emt 0:00:24]} 41. Rd5 {[%emt 0:00:00]} Qh6+ {[%emt 0:00:10]} 42. Kg2 {[%emt 0:00:00]} f6 {[%emt 0:00:16]} 43. Rd4 {[%emt 0:00:00]} Qh5 {[%emt 0:00:22]} 44. Qd5+ {[%emt 0:00:00]} Qf7 {[%emt 0:01:04]} 45. Qxf7+ {[%emt 0:00:00]} Nxf7 {[%emt 0:00:27]} 46. Rd5 {[%emt 0:00:00]} Re5 {[%emt 0:00:08]} 47. Rxe5 {[%emt 0:00:00]} Nxe5 {[%emt 0:00:04]} 48. Kf2 {[%emt 0:00:00]} Kh7 {[%emt 0:00:14]} 49. Ke3 {[%emt 0:00:00]} Kh6 {[%emt 0:00:22]} 50. h3 {[%emt 0:00:15]} Nc4+ {[%emt 0:00:51]} 51. Kd4 {[%emt 0:00:13]} Nb2 {[%emt 0:00:00]} 52. Kc5 {[%emt 0:00:18]} Nxa4+ {[%emt 0:00:00]} 53. Kb5 {[%emt 0:00:06]} Nc3+ {[%emt 0:00:00]} 54. Kxa5 {[%emt 0:00:07]} Kg5 {[%emt 0:00:01]} 0-1

[Event "17th Memorial Lezcano Montalvo 2025"]
[Site "Gran Canaria"]
[Date "2025.04.15"]
[Round "4.49"]
[White "Almeida Cubas, Mirella"]
[Black "Vallejo Aleman, Ricardo Manuel"]
[Result "1-0"]
[Annotator "NA RC"]
[ECO "C45"]
[WhiteElo "1824"]
[BlackElo "1554"]
[PlyCount "39"]
[EventDate "2025.04.13"]
[EventType "swiss"]
[EventCountry "ESP"]
[SourceTitle "playchess.com"]
[Source "ChessBase"]
[SourceQuality "1"]
[TimeControl "5400+30"]

1. e4 {[%emt 0:00:02]} e5 {[%emt 0:01:02]} 2. Nf3 {[%emt 0:00:05]} Nc6 {[%emt 0:00:07]} 3. d4 {[%emt 0:00:05]} exd4 {[%emt 0:00:19]} 4. Nxd4 {[%emt 0:00:03]} Bc5 {[%emt 0:00:08]} 5. Nb3 {[%emt 0:03:04]} Bb6 {[%emt 0:01:05]} 6. Qe2 {[%emt 0:01:53]} Qe7 {[%emt 0:01:07]} 7. Nc3 {[%emt 0:00:27]} a5 {[%emt 0:01:12]} 8. Nd5 {[%emt 0:02:29]} Qe5 {[%emt 0:00:06]} 9. f4 {[%emt 0:08:41]} Qd6 {[%emt 0:01:16]} 10. a4 {[%emt 0:06:48]} Ba7 {[%emt 0:02:49]} 11. g3 {[%emt 0:04:40]} b6 {[%emt 0:02:25]} 12. Bg2 {[%emt 0:00:32]} Bb7 {[%emt 0:00:23]} 13. e5 {[%emt 0:00:54]} Qg6 {[%emt 0:01:35]} 14. Be4 {[%emt 0:05:36]} f5 {[%emt 0:00:51]} 15. exf6 {[%emt 0:08:04]} Qh6 {[%emt 0:01:09]} 16. f5 {[%emt 0:03:58]} g5 {[%emt 0:01:09]} 17. fxg6 {[%emt 0:02:55]} Qf8 {[%emt 0:01:21]} 18. g7 {[%emt 0:00:53]} Qd6 {[%emt 0:00:45]} 19. Bg6+ {[%emt 0:48:51]} Kd8 {[%emt 0:00:43]} 20. Qe8# {[%emt 0:00:00]} 1-0

[Event "17th Memorial Lezcano Montalvo 2025"]
[Site "Gran Canaria"]
[Date "2025.04.15"]
[Round "4.50"]
[White "Sanchez Montesdeoca, Isaac"]
[Black "Monteiro Rodrigues, Carlos"]
[Result "1-0"]
[Annotator "NA RC"]
[ECO "C24"]
[WhiteElo "1807"]
[BlackElo "1549"]
[PlyCount "35"]
[EventDate "2025.04.13"]
[EventType "swiss"]
[EventCountry "ESP"]
[SourceTitle "playchess.com"]
[Source "ChessBase"]
[SourceQuality "1"]
[TimeControl "5400+30"]

1. e4 {[%emt 0:00:04]} e5 {[%emt 0:00:38]} 2. Bc4 {[%emt 0:00:09]} Nf6 {[%emt 0:01:14]} 3. d4 {[%emt 0:00:13]} Nc6 {[%emt 0:01:18]} 4. d5 {[%emt 0:00:37]} Na5 {[%emt 0:01:47]} 5. Bd3 {[%emt 0:00:30]} b6 {[%emt 0:00:49]} 6. Ne2 {[%emt 0:01:23]} c6 {[%emt 0:01:48]} 7. O-O {[%emt 0:01:15]} cxd5 {[%emt 0:02:18]} 8. exd5 {[%emt 0:00:09]} Nb7 {[%emt 0:02:07]} 9. Nbc3 {[%emt 0:02:00]} Nc5 {[%emt 1:23:01]} 10. Re1 {[%emt 0:03:03]} Nxd3 {[%emt 0:00:00]} 11. Qxd3 {[%emt 0:00:11]} Bb7 {[%emt 0:00:00]} 12. Bg5 {[%emt 0:00:45]} Bc5 {[%emt 0:00:00]} 13. Ng3 {[%emt 0:01:48]} O-O {[%emt 0:00:00]} 14. Nce4 {[%emt 0:02:24]} h6 {[%emt 0:00:00]} 15. Nxf6+ {[%emt 0:00:17]} gxf6 {[%emt 0:03:00]} 16. Bxh6 {[%emt 1:23:42]} Kh8 {[%emt 0:00:00]} 17. Nf5 {[%emt 0:00:00]} Rg8 {[%emt 0:00:00]} 18. Qh3 {[%emt 0:00:00]} 1-0